[Event "Betsys MČR v online bleskovém šachu 2021"]
[Site "Chess.com"]
[Date "2021.04.17"]
[Round "4"]
[White "Hapinka"]
[Black "Qb1xh8"]
[Result "0-1"]
[WhiteElo "1851"]
[BlackElo "2142"]
[TimeControl "180+1"]
[EndTime "9:35:36 PDT"]
[Termination "Uživatel Qb1xh8 zvítězil po vzdání soupeře"]

1. e4 {[%clk 0:03:00.9]} 1... e6 {[%clk 0:02:59]} 2. d4 {[%clk 0:02:59.5]} 2...
d5 {[%clk 0:02:58.7]} 3. e5 {[%clk 0:02:59.8]} 3... c5 {[%clk 0:02:55.9]} 4. c3
{[%clk 0:03:00.3]} 4... Qb6 {[%clk 0:02:55.6]} 5. Nf3 {[%clk 0:03:00.5]} 5...
Bd7 {[%clk 0:02:54.9]} 6. Bd3 {[%clk 0:02:58.6]} 6... Bb5 {[%clk 0:02:52.8]} 7.
O-O {[%clk 0:02:55.3]} 7... Bxd3 {[%clk 0:02:50.9]} 8. Qxd3 {[%clk 0:02:54.8]}
8... cxd4 {[%clk 0:02:51.3]} 9. cxd4 {[%clk 0:02:53.9]} 9... Nc6 {[%clk
0:02:51.5]} 10. Nc3 {[%clk 0:02:51.2]} 10... Nge7 {[%clk 0:02:47.6]} 11. Na4
{[%clk 0:02:48.6]} 11... Qa5 {[%clk 0:02:46.4]} 12. Nc5 {[%clk 0:02:43.9]} 12...
Qb6 {[%clk 0:02:16.4]} 13. Bd2 {[%clk 0:02:17.6]} 13... Nxd4 {[%clk 0:02:07.7]}
14. Nxd4 {[%clk 0:02:04.4]} 14... Qxc5 {[%clk 0:02:06.8]} 15. Rfc1 {[%clk
0:01:57.2]} 15... Qb6 {[%clk 0:02:05.6]} 16. Qb5+ {[%clk 0:01:22.5]} 16... Nc6
{[%clk 0:01:54.4]} 17. Qxb6 {[%clk 0:01:21]} 17... axb6 {[%clk 0:01:55.3]} 18.
Nxc6 {[%clk 0:01:21]} 18... bxc6 {[%clk 0:01:55.4]} 19. Rxc6 {[%clk 0:01:19.6]}
19... Bc5 {[%clk 0:01:53]} 20. b4 {[%clk 0:01:13.8]} 20... Kd7 {[%clk
0:01:46.9]} 21. b5 {[%clk 0:01:13.7]} 21... Ra4 {[%clk 0:01:27.9]} 22. Be3
{[%clk 0:01:09.6]} 22... d4 {[%clk 0:01:25.1]} 23. Rd1 {[%clk 0:01:00.1]} 23...
Rha8 {[%clk 0:01:14.9]} 24. f3 {[%clk 0:00:55.3]} 24... R8a5 {[%clk 0:01:12.6]}
25. Kf1 {[%clk 0:00:41.3]} 25... Rxb5 {[%clk 0:01:10.3]} 0-1

[Event "Betsys MČR v online bleskovém šachu 2021"]
[Site "Chess.com"]
[Date "2021.04.17"]
[Round "4"]
[White "YawningBagel"]
[Black "YoungMegaMind"]
[Result "1-0"]
[WhiteElo "1947"]
[BlackElo "2224"]
[TimeControl "180+1"]
[EndTime "9:35:38 PDT"]
[Termination "Uživatel YawningBagel zvítězil po vzdání soupeře"]

1. d4 {[%clk 0:03:00.9]} 1... Nf6 {[%clk 0:02:53.8]} 2. c4 {[%clk 0:03:01]} 2...
e6 {[%clk 0:02:52.4]} 3. Nc3 {[%clk 0:03:01.1]} 3... c5 {[%clk 0:02:53]} 4. d5
{[%clk 0:03:00.6]} 4... exd5 {[%clk 0:02:53.6]} 5. cxd5 {[%clk 0:03:01.5]} 5...
d6 {[%clk 0:02:52.9]} 6. e4 {[%clk 0:03:01.8]} 6... g6 {[%clk 0:02:52.4]} 7. h3
{[%clk 0:03:01.7]} 7... Bg7 {[%clk 0:02:51.9]} 8. Nf3 {[%clk 0:03:02.1]} 8...
O-O {[%clk 0:02:51.1]} 9. Bd3 {[%clk 0:03:01.7]} 9... Nbd7 {[%clk 0:02:51.2]}
10. O-O {[%clk 0:03:01.7]} 10... a6 {[%clk 0:02:51.7]} 11. a4 {[%clk 0:03:01.6]}
11... Re8 {[%clk 0:02:46.2]} 12. Bf4 {[%clk 0:03:01.1]} 12... Nf8 {[%clk
0:02:32.6]} 13. Re1 {[%clk 0:02:58.2]} 13... Nh5 {[%clk 0:02:32.4]} 14. Bh2
{[%clk 0:02:48.5]} 14... Rb8 {[%clk 0:02:19.7]} 15. Nd2 {[%clk 0:02:46]} 15...
Qg5 {[%clk 0:01:30.6]} 16. Nf3 {[%clk 0:02:18]} 16... Qd8 {[%clk 0:01:20.6]} 17.
Qc2 {[%clk 0:02:10]} 17... Nf6 {[%clk 0:00:52.4]} 18. Rad1 {[%clk 0:02:05.5]}
18... Re7 {[%clk 0:00:28.4]} 19. e5 {[%clk 0:01:52.4]} 19... Ne8 {[%clk
0:00:23.4]} 20. exd6 {[%clk 0:01:43.9]} 20... Nxd6 {[%clk 0:00:24.3]} 21. Rxe7
{[%clk 0:01:39.2]} 21... Qxe7 {[%clk 0:00:24.3]} 22. Ne4 {[%clk 0:01:37.1]}
22... Nxe4 {[%clk 0:00:14.4]} 23. Bxb8 {[%clk 0:01:36.4]} 23... Nf6 {[%clk
0:00:13.3]} 24. Qb3 {[%clk 0:01:27.6]} 24... N8d7 {[%clk 0:00:11.2]} 25. Bh2
{[%clk 0:01:21.2]} 25... Qd6 {[%clk 0:00:10.4]} 26. Bxd6 {[%clk 0:01:18.5]} 1-0

[Event "Betsys MČR v online bleskovém šachu 2021"]
[Site "Chess.com"]
[Date "2021.04.17"]
[Round "4"]
[White "horvi1"]
[Black "VeceraP1973"]
[Result "1-0"]
[WhiteElo "2233"]
[BlackElo "1912"]
[TimeControl "180+1"]
[EndTime "9:35:42 PDT"]
[Termination "Uživatel horvi1 zvítězil po vzdání soupeře"]

1. e4 {[%clk 0:03:00.9]} 1... e5 {[%clk 0:02:59.2]} 2. f4 {[%clk 0:03:00.3]}
2... exf4 {[%clk 0:02:58.3]} 3. Nf3 {[%clk 0:03:00.3]} 3... d5 {[%clk
0:02:58.1]} 4. exd5 {[%clk 0:03:00.1]} 4... Bd6 {[%clk 0:02:57.7]} 5. c4 {[%clk
0:02:59.1]} 5... Nf6 {[%clk 0:02:56.4]} 6. d4 {[%clk 0:02:57.1]} 6... c5 {[%clk
0:02:55.1]} 7. dxc6 {[%clk 0:02:55.5]} 7... Nxc6 {[%clk 0:02:54.4]} 8. Nc3
{[%clk 0:02:54.9]} 8... O-O {[%clk 0:02:53.7]} 9. Be2 {[%clk 0:02:53.8]} 9...
Re8 {[%clk 0:02:48.3]} 10. O-O {[%clk 0:02:52]} 10... Bf5 {[%clk 0:02:45.3]} 11.
c5 {[%clk 0:02:45.7]} 11... Bc7 {[%clk 0:02:43.8]} 12. d5 {[%clk 0:02:42.7]}
12... Ne5 {[%clk 0:02:30.8]} 13. d6 {[%clk 0:02:38.5]} 13... Nxf3+ {[%clk
0:02:22.4]} 14. Bxf3 {[%clk 0:02:37.4]} 14... Ba5 {[%clk 0:02:21.3]} 15. Bxb7
{[%clk 0:02:26.8]} 15... Rb8 {[%clk 0:02:20.4]} 16. c6 {[%clk 0:02:26.8]} 16...
Bxc3 {[%clk 0:02:15.7]} 17. c7 {[%clk 0:02:08.3]} 17... Qd7 {[%clk 0:01:57.4]}
18. cxb8=Q {[%clk 0:02:05.2]} 18... Rxb8 {[%clk 0:01:56.8]} 19. bxc3 {[%clk
0:01:53.1]} 19... Rxb7 {[%clk 0:01:51.7]} 20. c4 {[%clk 0:01:50.4]} 20... Ne4
{[%clk 0:01:44.1]} 21. Bxf4 {[%clk 0:01:41.6]} 21... g5 {[%clk 0:01:28.1]} 22.
Be5 {[%clk 0:01:27.6]} 22... f6 {[%clk 0:01:21.7]} 23. Qd5+ {[%clk 0:01:16.2]}
23... Kg7 {[%clk 0:00:49.5]} 24. Bxf6+ {[%clk 0:00:55.9]} 24... Kxf6 {[%clk
0:00:47.8]} 25. Qxe4 {[%clk 0:00:48.7]} 25... Rb2 {[%clk 0:00:40.1]} 26. Qd4+
{[%clk 0:00:46.4]} 1-0

[Event "Betsys MČR v online bleskovém šachu 2021"]
[Site "Chess.com"]
[Date "2021.04.17"]
[Round "4"]
[White "Klapuch05"]
[Black "krajic001"]
[Result "1-0"]
[WhiteElo "1548"]
[BlackElo "1522"]
[TimeControl "180+1"]
[EndTime "9:35:48 PDT"]
[Termination "Uživatel Klapuch05 zvítězil na čas"]

1. e4 {[%clk 0:02:58.9]} 1... e5 {[%clk 0:02:59]} 2. Nf3 {[%clk 0:02:58.7]} 2...
Nc6 {[%clk 0:02:57.4]} 3. d4 {[%clk 0:02:58.8]} 3... exd4 {[%clk 0:02:47.8]} 4.
Nxd4 {[%clk 0:02:58.5]} 4... Bc5 {[%clk 0:02:44.5]} 5. Nb3 {[%clk 0:02:58.5]}
5... Bb6 {[%clk 0:02:42.1]} 6. Nc3 {[%clk 0:02:58.1]} 6... Nf6 {[%clk
0:02:39.8]} 7. Qe2 {[%clk 0:02:57.4]} 7... O-O {[%clk 0:02:37.9]} 8. Be3 {[%clk
0:02:57]} 8... d5 {[%clk 0:02:27.7]} 9. O-O-O {[%clk 0:02:56.2]} 9... d4 {[%clk
0:01:50.1]} 10. Nxd4 {[%clk 0:02:47.2]} 10... Nxd4 {[%clk 0:01:44.2]} 11. Bxd4
{[%clk 0:02:42.7]} 11... Bxd4 {[%clk 0:01:35.5]} 12. Nb5 {[%clk 0:02:38.1]}
12... Bxb2+ {[%clk 0:01:25.8]} 13. Kxb2 {[%clk 0:02:25.9]} 13... Qe7 {[%clk
0:01:24.9]} 14. c3 {[%clk 0:02:21.4]} 14... Qxe4 {[%clk 0:01:17.7]} 15. Nxc7
{[%clk 0:02:17.3]} 15... Qa4 {[%clk 0:01:05.8]} 16. Rd4 {[%clk 0:02:12.5]} 16...
Qa5 {[%clk 0:00:49.4]} 17. Nxa8 {[%clk 0:02:04.1]} 17... Be6 {[%clk 0:00:48.2]}
18. a3 {[%clk 0:01:40.1]} 18... Rxa8 {[%clk 0:00:41.4]} 19. Qb5 {[%clk
0:01:33.1]} 19... Qxb5+ {[%clk 0:00:29.6]} 20. Bxb5 {[%clk 0:01:34]} 20... Nd5
{[%clk 0:00:29]} 21. Rhd1 {[%clk 0:01:28.5]} 21... g6 {[%clk 0:00:22.9]} 22.
Rxd5 {[%clk 0:01:26.1]} 22... Bxd5 {[%clk 0:00:21.4]} 23. Rxd5 {[%clk 0:01:27]}
23... a6 {[%clk 0:00:19.9]} 24. Bc4 {[%clk 0:01:26.3]} 24... b5 {[%clk
0:00:12.8]} 25. Bb3 {[%clk 0:01:26.3]} 25... Re8 {[%clk 0:00:10.5]} 26. Rd7
{[%clk 0:01:23.1]} 26... Rf8 {[%clk 0:00:04.7]} 27. a4 {[%clk 0:01:21.7]} 27...
bxa4 {[%clk 0:00:02.5]} 28. Bxa4 {[%clk 0:01:21.9]} 1-0

[Event "Betsys MČR v online bleskovém šachu 2021"]
[Site "Chess.com"]
[Date "2021.04.17"]
[Round "4"]
[White "VitaRasik"]
[Black "fortale"]
[Result "1/2-1/2"]
[WhiteElo "2614"]
[BlackElo "2347"]
[TimeControl "180+1"]
[EndTime "9:35:49 PDT"]
[Termination "Remíza opakováním pozice"]

1. e4 {[%clk 0:03:00.9]} 1... c5 {[%clk 0:02:54]} 2. Nf3 {[%clk 0:03:00.6]} 2...
d6 {[%clk 0:02:54.2]} 3. Bb5+ {[%clk 0:02:59.7]} 3... Bd7 {[%clk 0:02:54]} 4.
Bxd7+ {[%clk 0:02:59]} 4... Qxd7 {[%clk 0:02:54.9]} 5. O-O {[%clk 0:02:58.7]}
5... Nc6 {[%clk 0:02:55.1]} 6. c3 {[%clk 0:02:58.2]} 6... Nf6 {[%clk 0:02:55.3]}
7. d4 {[%clk 0:02:58.4]} 7... cxd4 {[%clk 0:02:55]} 8. cxd4 {[%clk 0:02:58.6]}
8... e6 {[%clk 0:02:55.4]} 9. Nc3 {[%clk 0:02:57.1]} 9... d5 {[%clk 0:02:54.2]}
10. e5 {[%clk 0:02:33.4]} 10... Ne4 {[%clk 0:02:54.3]} 11. Ne2 {[%clk
0:02:28.4]} 11... Be7 {[%clk 0:02:50.2]} 12. Ne1 {[%clk 0:02:28.1]} 12... f6
{[%clk 0:02:29.3]} 13. f3 {[%clk 0:02:27.5]} 13... Ng5 {[%clk 0:02:29.3]} 14.
exf6 {[%clk 0:02:16.9]} 14... Bxf6 {[%clk 0:02:24.2]} 15. Bxg5 {[%clk
0:02:11.8]} 15... Bxg5 {[%clk 0:02:24.1]} 16. f4 {[%clk 0:02:12.1]} 16... Bf6
{[%clk 0:02:24.4]} 17. Nf3 {[%clk 0:02:12.3]} 17... O-O {[%clk 0:02:23.6]} 18.
Qd2 {[%clk 0:02:08.7]} 18... Rac8 {[%clk 0:02:21]} 19. Rac1 {[%clk 0:01:59.3]}
19... Qd6 {[%clk 0:02:20.5]} 20. a3 {[%clk 0:01:56.5]} 20... Qc7 {[%clk
0:02:13.5]} 21. h3 {[%clk 0:01:47]} 21... Qb6 {[%clk 0:02:13.5]} 22. Kh1 {[%clk
0:01:46.7]} 22... a6 {[%clk 0:02:05.7]} 23. Ne5 {[%clk 0:01:41.7]} 23... Bxe5
{[%clk 0:02:03.8]} 24. fxe5 {[%clk 0:01:36.7]} 24... Ne7 {[%clk 0:02:03.4]} 25.
Kh2 {[%clk 0:01:29.1]} 25... Rxc1 {[%clk 0:01:58.1]} 26. Rxf8+ {[%clk
0:01:24.1]} 26... Kxf8 {[%clk 0:01:56.4]} 27. Qxc1 {[%clk 0:01:24]} 27... Kg8
{[%clk 0:01:27.5]} 28. Qc3 {[%clk 0:01:23.2]} 28... h6 {[%clk 0:01:24]} 29. Nf4
{[%clk 0:01:20.2]} 29... g5 {[%clk 0:01:07.6]} 30. Nh5 {[%clk 0:01:13.1]} 30...
Qc6 {[%clk 0:01:06.1]} 31. Nf6+ {[%clk 0:01:11.8]} 31... Kg7 {[%clk 0:01:04.6]}
32. Qd3 {[%clk 0:01:08.4]} 32... Ng6 {[%clk 0:00:54.4]} 33. b4 {[%clk 0:01:07]}
33... Qc1 {[%clk 0:00:51.1]} 34. Ne8+ {[%clk 0:01:02.5]} 34... Kf7 {[%clk
0:00:49.4]} 35. Nd6+ {[%clk 0:01:01.1]} 35... Kg7 {[%clk 0:00:49.6]} 36. Ne8+
{[%clk 0:01:00.8]} 36... Kf7 {[%clk 0:00:49.7]} 37. Nd6+ {[%clk 0:01:00.1]}
37... Kg7 {[%clk 0:00:50.1]} 38. Ne8+ {[%clk 0:00:55.8]} 1/2-1/2

[Event "Betsys MČR v online bleskovém šachu 2021"]
[Site "Chess.com"]
[Date "2021.04.17"]
[Round "4"]
[White "jachym08"]
[Black "BRNOTEACHER"]
[Result "0-1"]
[WhiteElo "2171"]
[BlackElo "2374"]
[TimeControl "180+1"]
[EndTime "9:35:50 PDT"]
[Termination "Uživatel BRNOTEACHER zvítězil po vzdání soupeře"]

1. d4 {[%clk 0:03:00.9]} 1... Nf6 {[%clk 0:02:59.5]} 2. c4 {[%clk 0:02:58.7]}
2... e6 {[%clk 0:02:58.8]} 3. Nc3 {[%clk 0:02:58.1]} 3... Bb4 {[%clk 0:02:58.8]}
4. e3 {[%clk 0:02:57.9]} 4... O-O {[%clk 0:02:54.9]} 5. Bd3 {[%clk 0:02:57.5]}
5... c5 {[%clk 0:02:51.5]} 6. Nf3 {[%clk 0:02:52.8]} 6... d5 {[%clk 0:02:48]} 7.
O-O {[%clk 0:02:52.1]} 7... cxd4 {[%clk 0:02:38.8]} 8. exd4 {[%clk 0:02:51.2]}
8... dxc4 {[%clk 0:02:39]} 9. Bxc4 {[%clk 0:02:52.1]} 9... Nc6 {[%clk
0:02:39.2]} 10. a3 {[%clk 0:02:51.6]} 10... Bxc3 {[%clk 0:02:38.7]} 11. bxc3
{[%clk 0:02:51.3]} 11... b6 {[%clk 0:02:32.7]} 12. Bg5 {[%clk 0:02:51]} 12...
Bb7 {[%clk 0:02:32.1]} 13. Re1 {[%clk 0:02:39.9]} 13... Rc8 {[%clk 0:02:30.7]}
14. Ba2 {[%clk 0:02:38.6]} 14... Qd6 {[%clk 0:02:13.8]} 15. Qd3 {[%clk
0:02:24.7]} 15... Ne7 {[%clk 0:02:11.4]} 16. Ne5 {[%clk 0:02:12.6]} 16... Ng6
{[%clk 0:02:03.5]} 17. Bxf6 {[%clk 0:01:49.4]} 17... gxf6 {[%clk 0:02:02.9]} 18.
Ng4 {[%clk 0:01:44]} 18... Qf4 {[%clk 0:01:48]} 19. Ne3 {[%clk 0:01:25]} 19...
Rfd8 {[%clk 0:01:43.8]} 20. Rad1 {[%clk 0:01:20.9]} 20... Qg5 {[%clk 0:01:41]}
21. d5 {[%clk 0:00:55.1]} 21... Nf4 {[%clk 0:01:37.6]} 22. Qe4 {[%clk
0:00:50.6]} 22... Rxc3 {[%clk 0:01:29.7]} 23. Bb1 {[%clk 0:00:20.4]} 23... f5
{[%clk 0:01:12.7]} 24. Qf3 {[%clk 0:00:20.4]} 24... Bxd5 {[%clk 0:01:06.7]} 25.
Rxd5 {[%clk 0:00:17.1]} 25... Nxd5 {[%clk 0:01:00.7]} 0-1

[Event "Betsys MČR v online bleskovém šachu 2021"]
[Site "Chess.com"]
[Date "2021.04.17"]
[Round "4"]
[White "androidddd"]
[Black "Sandokanom"]
[Result "1-0"]
[WhiteElo "1425"]
[BlackElo "1755"]
[TimeControl "180+1"]
[EndTime "9:35:50 PDT"]
[Termination "Uživatel androidddd zvítězil po vzdání soupeře"]

1. e4 {[%clk 0:03:00.9]} 1... c5 {[%clk 0:02:59.5]} 2. Nf3 {[%clk 0:02:56.2]}
2... e6 {[%clk 0:03:00.4]} 3. d4 {[%clk 0:02:56.1]} 3... cxd4 {[%clk 0:03:00.2]}
4. Nxd4 {[%clk 0:02:55.3]} 4... Nf6 {[%clk 0:03:01.1]} 5. Nc3 {[%clk 0:02:54.6]}
5... Bb4 {[%clk 0:03:00.8]} 6. f3 {[%clk 0:02:46]} 6... d5 {[%clk 0:02:56.8]} 7.
e5 {[%clk 0:02:40.2]} 7... Nfd7 {[%clk 0:02:56.2]} 8. f4 {[%clk 0:02:37.7]} 8...
Qb6 {[%clk 0:02:53]} 9. Be3 {[%clk 0:02:30.1]} 9... Nc6 {[%clk 0:02:44.8]} 10.
Be2 {[%clk 0:02:19.8]} 10... Bc5 {[%clk 0:02:40.8]} 11. Na4 {[%clk 0:01:48.2]}
11... Qa5+ {[%clk 0:02:39.8]} 12. c3 {[%clk 0:01:44.9]} 12... Bxd4 {[%clk
0:02:32.4]} 13. Bxd4 {[%clk 0:01:43.2]} 13... b5 {[%clk 0:02:29.3]} 14. Nc5
{[%clk 0:01:31.3]} 14... b4 {[%clk 0:02:22.2]} 15. Nxd7 {[%clk 0:01:24]} 15...
Bxd7 {[%clk 0:02:23.1]} 16. O-O {[%clk 0:01:21.5]} 16... Nxd4 {[%clk 0:02:20]}
17. cxd4 {[%clk 0:01:19.1]} 17... O-O {[%clk 0:02:17.3]} 18. Qb3 {[%clk
0:01:12.5]} 18... Ba4 {[%clk 0:02:07.3]} 19. Qg3 {[%clk 0:01:06]} 19... Rac8
{[%clk 0:02:04.9]} 20. f5 {[%clk 0:01:00.6]} 20... Qb6 {[%clk 0:01:51.3]} 21. f6
{[%clk 0:00:51.3]} 21... g6 {[%clk 0:01:49.4]} 22. Qf4 {[%clk 0:00:47]} 22...
Kh8 {[%clk 0:01:38.3]} 23. Rf3 {[%clk 0:00:29.5]} 23... Rc2 {[%clk 0:01:29.9]}
24. Qh6 {[%clk 0:00:24.2]} 24... Qxd4+ {[%clk 0:01:25.7]} 25. Kh1 {[%clk
0:00:23.6]} 25... Rg8 {[%clk 0:01:05.6]} 26. Qxh7+ {[%clk 0:00:20.3]} 1-0

[Event "Betsys MČR v online bleskovém šachu 2021"]
[Site "Chess.com"]
[Date "2021.04.17"]
[Round "4"]
[White "Terilka"]
[Black "domecek"]
[Result "0-1"]
[WhiteElo "1522"]
[BlackElo "1968"]
[TimeControl "180+1"]
[EndTime "9:35:55 PDT"]
[Termination "Uživatel domecek zvítězil po vzdání soupeře"]

1. d4 {[%clk 0:03:00.9]} 1... d5 {[%clk 0:02:59.7]} 2. Nf3 {[%clk 0:02:59.1]}
2... Nf6 {[%clk 0:02:58.8]} 3. e3 {[%clk 0:02:59.2]} 3... g6 {[%clk 0:02:58]} 4.
Bd3 {[%clk 0:02:59.7]} 4... Bg7 {[%clk 0:02:57.9]} 5. O-O {[%clk 0:02:57.6]}
5... O-O {[%clk 0:02:57.9]} 6. c4 {[%clk 0:02:56.8]} 6... c6 {[%clk 0:02:55.9]}
7. Nc3 {[%clk 0:02:56.6]} 7... a6 {[%clk 0:02:55.4]} 8. a4 {[%clk 0:02:55]} 8...
b6 {[%clk 0:02:54.2]} 9. Qe2 {[%clk 0:02:49.7]} 9... Bf5 {[%clk 0:02:50.1]} 10.
Bd2 {[%clk 0:02:21.5]} 10... e6 {[%clk 0:02:45.9]} 11. Rfc1 {[%clk 0:02:13.8]}
11... Bxd3 {[%clk 0:02:40.7]} 12. Qxd3 {[%clk 0:02:14.7]} 12... Nbd7 {[%clk
0:02:27.2]} 13. b3 {[%clk 0:01:51.1]} 13... Qe7 {[%clk 0:02:22.5]} 14. Ne2
{[%clk 0:01:39.4]} 14... Rfc8 {[%clk 0:02:20.1]} 15. b4 {[%clk 0:01:22.7]} 15...
Ne4 {[%clk 0:02:14.1]} 16. Be1 {[%clk 0:01:18.4]} 16... c5 {[%clk 0:02:08.3]}
17. bxc5 {[%clk 0:01:12]} 17... bxc5 {[%clk 0:02:06.8]} 18. Rab1 {[%clk
0:01:12]} 18... Nd6 {[%clk 0:01:35.5]} 19. cxd5 {[%clk 0:01:03]} 19... c4 {[%clk
0:01:33]} 20. Rxc4 {[%clk 0:00:53.7]} 20... Nxc4 {[%clk 0:01:31.6]} 21. Qxc4
{[%clk 0:00:54.6]} 21... Rxc4 {[%clk 0:01:30.5]} 22. dxe6 {[%clk 0:00:47.6]}
22... Qxe6 {[%clk 0:01:26.2]} 23. Nf4 {[%clk 0:00:46.8]} 23... Qe8 {[%clk
0:01:17.7]} 24. Nd5 {[%clk 0:00:35.8]} 24... Rb8 {[%clk 0:01:10.5]} 25. Rd1
{[%clk 0:00:24.4]} 25... Nb6 {[%clk 0:01:08.7]} 26. Nb4 {[%clk 0:00:20.4]} 26...
Qxa4 {[%clk 0:01:06.1]} 27. Nd3 {[%clk 0:00:17.6]} 27... Qxd1 {[%clk 0:01:04.2]}
28. Kf1 {[%clk 0:00:16.6]} 0-1

[Event "Betsys MČR v online bleskovém šachu 2021"]
[Site "Chess.com"]
[Date "2021.04.17"]
[Round "4"]
[White "Ehlundi"]
[Black "vaclavbelaska"]
[Result "1-0"]
[WhiteElo "1767"]
[BlackElo "1402"]
[TimeControl "180+1"]
[EndTime "9:35:56 PDT"]
[Termination "Uživatel Ehlundi zvítězil na čas"]

1. e4 {[%clk 0:03:00.9]} 1... c5 {[%clk 0:02:56]} 2. Nf3 {[%clk 0:03:01.2]} 2...
d6 {[%clk 0:02:44.7]} 3. d4 {[%clk 0:03:01.4]} 3... cxd4 {[%clk 0:02:43.7]} 4.
Nxd4 {[%clk 0:03:01.5]} 4... Nf6 {[%clk 0:02:41.4]} 5. Nc3 {[%clk 0:03:00.6]}
5... g6 {[%clk 0:02:32.2]} 6. Be2 {[%clk 0:02:59.5]} 6... Bg7 {[%clk 0:02:31.2]}
7. O-O {[%clk 0:02:59.5]} 7... O-O {[%clk 0:02:30]} 8. Bg5 {[%clk 0:02:58.9]}
8... h6 {[%clk 0:02:28.5]} 9. Bh4 {[%clk 0:02:59]} 9... a6 {[%clk 0:02:24.3]}
10. Kh1 {[%clk 0:02:56.3]} 10... Nc6 {[%clk 0:02:21.5]} 11. f4 {[%clk 0:02:45]}
11... Qb6 {[%clk 0:02:12]} 12. Nb3 {[%clk 0:02:36.1]} 12... Bd7 {[%clk
0:02:04.1]} 13. Bf2 {[%clk 0:02:32.7]} 13... Qc7 {[%clk 0:02:02.3]} 14. Bg3
{[%clk 0:02:26.8]} 14... Rac8 {[%clk 0:01:56.1]} 15. Bf3 {[%clk 0:02:22.3]}
15... Be6 {[%clk 0:01:25.4]} 16. Nd5 {[%clk 0:02:13.2]} 16... Bxd5 {[%clk
0:01:21.8]} 17. exd5 {[%clk 0:02:13.3]} 17... Nb4 {[%clk 0:01:17]} 18. c3 {[%clk
0:02:09.7]} 18... Nbxd5 {[%clk 0:00:29.8]} 19. Bxd5 {[%clk 0:02:08.4]} 19...
Nxd5 {[%clk 0:00:22.4]} 20. Qxd5 {[%clk 0:02:07.4]} 20... e6 {[%clk 0:00:20.5]}
21. Qd3 {[%clk 0:02:03]} 21... Qb6 {[%clk 0:00:18.6]} 22. Rad1 {[%clk
0:01:57.8]} 22... Rc6 {[%clk 0:00:17.9]} 23. Bf2 {[%clk 0:01:50.6]} 23... Qc7
{[%clk 0:00:14.8]} 24. Bd4 {[%clk 0:01:49.8]} 24... Bxd4 {[%clk 0:00:07.8]} 25.
Nxd4 {[%clk 0:01:49]} 25... Rc4 {[%clk 0:00:04.8]} 26. Nb3 {[%clk 0:01:37.5]}
26... Rc6 {[%clk 0:00:03.4]} 27. Nd2 {[%clk 0:01:31.9]} 27... b5 {[%clk
0:00:03.1]} 28. Ne4 {[%clk 0:01:31.2]} 28... d5 {[%clk 0:00:03.1]} 29. Nf6+
{[%clk 0:01:28.8]} 29... Kg7 {[%clk 0:00:03.5]} 30. Qd4 {[%clk 0:01:25.5]} 30...
Qe7 {[%clk 0:00:01]} 31. Ne8+ {[%clk 0:01:21.2]} 1-0

[Event "Betsys MČR v online bleskovém šachu 2021"]
[Site "Chess.com"]
[Date "2021.04.17"]
[Round "4"]
[White "Hanicka1517"]
[Black "florenc1330"]
[Result "0-1"]
[WhiteElo "1622"]
[BlackElo "2089"]
[TimeControl "180+1"]
[EndTime "9:36:02 PDT"]
[Termination "Uživatel florenc1330 zvítězil po vzdání soupeře"]

1. d4 {[%clk 0:03:00.9]} 1... Nf6 {[%clk 0:02:56.9]} 2. Nf3 {[%clk 0:03:00.9]}
2... g6 {[%clk 0:02:56.3]} 3. g3 {[%clk 0:03:01.1]} 3... Bg7 {[%clk 0:02:56.4]}
4. Bg2 {[%clk 0:03:01.4]} 4... c5 {[%clk 0:02:57]} 5. O-O {[%clk 0:02:59.8]}
5... O-O {[%clk 0:02:56.8]} 6. c4 {[%clk 0:02:56.8]} 6... d6 {[%clk 0:02:54.7]}
7. Nc3 {[%clk 0:02:51.5]} 7... Nc6 {[%clk 0:02:53.2]} 8. d5 {[%clk 0:02:43.3]}
8... Na5 {[%clk 0:02:51.4]} 9. Nd2 {[%clk 0:02:43]} 9... b5 {[%clk 0:02:45.6]}
10. cxb5 {[%clk 0:02:37]} 10... a6 {[%clk 0:02:45.5]} 11. bxa6 {[%clk
0:02:33.6]} 11... Bxa6 {[%clk 0:02:45.3]} 12. Re1 {[%clk 0:02:33.3]} 12... Nc4
{[%clk 0:02:36.3]} 13. Nxc4 {[%clk 0:02:30.7]} 13... Bxc4 {[%clk 0:02:36.2]} 14.
e4 {[%clk 0:02:28.6]} 14... Nd7 {[%clk 0:02:34.2]} 15. Qc2 {[%clk 0:02:18.7]}
15... Ne5 {[%clk 0:02:28.5]} 16. b3 {[%clk 0:02:09.7]} 16... Bd3 {[%clk
0:02:17.9]} 17. Qd2 {[%clk 0:02:05.2]} 17... Qa5 {[%clk 0:02:14.3]} 18. Bb2
{[%clk 0:02:00.6]} 18... Ba6 {[%clk 0:02:09.5]} 19. Qc2 {[%clk 0:01:31.5]} 19...
Nd3 {[%clk 0:02:06.9]} 20. Red1 {[%clk 0:01:24]} 20... Nxb2 {[%clk 0:02:05.9]}
21. Qxb2 {[%clk 0:01:23.7]} 21... Bxc3 {[%clk 0:02:03.5]} 22. Qc2 {[%clk
0:01:22.6]} 22... Bxa1 {[%clk 0:02:02.4]} 23. Rxa1 {[%clk 0:01:23.5]} 23... c4
{[%clk 0:01:52.2]} 24. bxc4 {[%clk 0:01:20.3]} 24... Qc5 {[%clk 0:01:52.1]} 25.
Bf1 {[%clk 0:01:19]} 25... Rfc8 {[%clk 0:01:50.8]} 26. Rc1 {[%clk 0:01:14]}
26... Rab8 {[%clk 0:01:46.4]} 27. Qa4 {[%clk 0:01:10.6]} 27... Qb6 {[%clk
0:01:36.7]} 28. c5 {[%clk 0:00:53.7]} 28... Rxc5 {[%clk 0:01:29.9]} 29. Rxc5
{[%clk 0:00:51.7]} 29... dxc5 {[%clk 0:01:25]} 30. Qxa6 {[%clk 0:00:49]} 30...
Qxa6 {[%clk 0:01:24.2]} 31. Bxa6 {[%clk 0:00:48.3]} 31... Rb4 {[%clk 0:01:23.3]}
32. e5 {[%clk 0:00:37]} 32... Ra4 {[%clk 0:01:21.9]} 33. Bc8 {[%clk 0:00:31.6]}
33... Rxa2 {[%clk 0:01:20.5]} 34. d6 {[%clk 0:00:32]} 34... exd6 {[%clk
0:01:19.9]} 35. exd6 {[%clk 0:00:32.4]} 35... Kf8 {[%clk 0:01:17.8]} 36. d7
{[%clk 0:00:28.2]} 36... Ke7 {[%clk 0:01:16.7]} 37. Kf1 {[%clk 0:00:26.5]} 37...
c4 {[%clk 0:01:16.2]} 38. Ke1 {[%clk 0:00:25.8]} 38... c3 {[%clk 0:01:16.5]} 0-1